[Event "Titled Tuesday Blitz June 22 2021"]
[White "Lazavik, Denis"]
[Black "Ponikarovsky, Alexey"]
[WhiteFideId "13515110"]
[BlackFideId "4122887"]
[WhiteElo "2436"]
[BlackElo "1944"]
[Result "1-0"]
[Round "10"]
[TimeControl "180+1"]
[Date "2021.06.22"]
[WhiteClock "0:01:47"]
[BlackClock "0:02:16"]

1. d4 {[%clk 0:03:00]}  d5 {[%clk 0:02:59]} 2. c4 {[%clk 0:03:00]}  e6 {[%clk 0:03:00]} 3. Nf3 {[%clk 0:03:00]}  Nf6 {[%clk 0:03:00]} 4. Nc3 {[%clk 0:03:00]}  Bb4 {[%clk 0:03:01]} 5. Bg5 {[%clk 0:02:55]}  O-O {[%clk 0:03:01]} 6. e3 {[%clk 0:02:55]}  c6 {[%clk 0:03:01]} 7. Bd3 {[%clk 0:02:51]}  h6 {[%clk 0:03:01]} 8. Bh4 {[%clk 0:02:49]}  dxc4 {[%clk 0:03:02]} 9. Bxc4 {[%clk 0:02:48]}  Nbd7 {[%clk 0:03:02]} 10. O-O {[%clk 0:02:48]}  Be7 {[%clk 0:03:02]} 11. a4 {[%clk 0:02:40]}  Nb6 {[%clk 0:03:02]} 12. Bd3 {[%clk 0:02:38]}  Nfd5 {[%clk 0:03:02]} 13. Bxe7 {[%clk 0:02:37]}  Qxe7 {[%clk 0:03:03]} 14. a5 {[%clk 0:02:37]}  Nxc3 {[%clk 0:03:03]} 15. bxc3 {[%clk 0:02:36]}  Nd5 {[%clk 0:03:03]} 16. Qd2 {[%clk 0:02:32]}  a6 {[%clk 0:03:03]} 17. e4 {[%clk 0:02:31]}  Nf6 {[%clk 0:03:03]} 18. Ne5 {[%clk 0:02:28]}  Nd7 {[%clk 0:03:02]} 19. Nc4 {[%clk 0:02:21]}  c5 {[%clk 0:02:58]} 20. d5 {[%clk 0:02:14]}  exd5 {[%clk 0:02:59]} 21. exd5 {[%clk 0:02:14]}  Qf6 {[%clk 0:02:57]} 22. Rfe1 {[%clk 0:02:13]}  Rd8 {[%clk 0:02:54]} 23. Rab1 {[%clk 0:02:11]}  Nf8 {[%clk 0:02:50]} 24. Rb6 {[%clk 0:02:10]}  Qh4 {[%clk 0:02:42]} 25. Nd6 {[%clk 0:01:56]}  Nd7 {[%clk 0:02:31]} 26. Nf5 {[%clk 0:01:54]}  Qa4 {[%clk 0:02:25]} 27. Rxh6 {[%clk 0:01:48]}  Nf8 {[%clk 0:02:16]} 28. Ne7# {[%clk 0:01:47]} 1-0


[Site "https://www.chess.com"]

[Event "Titled Tuesday Blitz June 22 2021"]
[White "Liang, Jason"]
[Black "Nguyen, Ngoc Truong Son"]
[WhiteFideId "30940303"]
[BlackFideId "12401110"]
[WhiteElo "1976"]
[BlackElo "2596"]
[Result "0-1"]
[Round "10"]
[TimeControl "180+1"]
[Date "2021.06.22"]
[WhiteClock "0:00:02"]
[BlackClock "0:00:13"]

1. b3 {[%clk 0:03:00]}  e5 {[%clk 0:02:52]} 2. Bb2 {[%clk 0:03:01]}  d6 {[%clk 0:02:50]} 3. c4 {[%clk 0:03:01]}  g6 {[%clk 0:02:49]} 4. d4 {[%clk 0:03:01]}  Bg7 {[%clk 0:02:49]} 5. dxe5 {[%clk 0:03:02]}  Bxe5 {[%clk 0:02:50]} 6. Bxe5 {[%clk 0:03:01]}  dxe5 {[%clk 0:02:51]} 7. Qxd8+ {[%clk 0:03:01]}  Kxd8 {[%clk 0:02:52]} 8. Nc3 {[%clk 0:03:02]}  c6 {[%clk 0:02:52]} 9. Nf3 {[%clk 0:03:01]}  f6 {[%clk 0:02:52]} 10. O-O-O {[%clk 0:03:01]}  Ke7 {[%clk 0:02:52]} 11. e3 {[%clk 0:02:56]}  Nh6 {[%clk 0:02:50]} 12. h3 {[%clk 0:02:54]}  Nf7 {[%clk 0:02:49]} 13. Be2 {[%clk 0:02:44]}  Be6 {[%clk 0:02:48]} 14. h4 {[%clk 0:02:38]}  h5 {[%clk 0:02:46]} 15. Nd2 {[%clk 0:02:33]}  Nd7 {[%clk 0:02:45]} 16. Nde4 {[%clk 0:02:31]}  f5 {[%clk 0:02:43]} 17. Ng5 {[%clk 0:02:31]}  Nxg5 {[%clk 0:02:31]} 18. hxg5 {[%clk 0:02:31]}  a5 {[%clk 0:02:20]} 19. Kc2 {[%clk 0:02:17]}  Nc5 {[%clk 0:02:20]} 20. a3 {[%clk 0:02:14]}  b5 {[%clk 0:02:10]} 21. f4 {[%clk 0:02:00]}  b4 {[%clk 0:02:08]} 22. Na4 {[%clk 0:01:40]}  Nxa4 {[%clk 0:02:07]} 23. bxa4 {[%clk 0:01:41]}  bxa3 {[%clk 0:02:07]} 24. Ra1 {[%clk 0:01:42]}  Rab8 {[%clk 0:02:05]} 25. Rxa3 {[%clk 0:01:42]}  Rb4 {[%clk 0:02:05]} 26. Rb3 {[%clk 0:01:30]}  Rxa4 {[%clk 0:02:00]} 27. Rb7+ {[%clk 0:01:29]}  Kd6 {[%clk 0:02:01]} 28. Kb3 {[%clk 0:01:22]}  Rb4+ {[%clk 0:02:00]} 29. Rxb4 {[%clk 0:01:23]}  axb4 {[%clk 0:02:01]} 30. Kxb4 {[%clk 0:01:23]}  Rb8+ {[%clk 0:01:54]} 31. Kc3 {[%clk 0:01:23]}  exf4 {[%clk 0:01:54]} 32. exf4 {[%clk 0:01:24]}  Kc5 {[%clk 0:01:54]} 33. Ra1 {[%clk 0:01:24]}  h4 {[%clk 0:01:19]} 34. Ra5+ {[%clk 0:01:12]}  Kd6 {[%clk 0:01:18]} 35. c5+ {[%clk 0:01:12]}  Ke7 {[%clk 0:01:16]} 36. Ra7+ {[%clk 0:01:12]}  Kf8 {[%clk 0:01:13]} 37. Rh7 {[%clk 0:00:48]}  Rb3+ {[%clk 0:01:12]} 38. Kd4 {[%clk 0:00:47]}  Rb4+ {[%clk 0:01:12]} 39. Ke3 {[%clk 0:00:30]}  Re4+ {[%clk 0:01:11]} 40. Kf3 {[%clk 0:00:29]}  Bd5 {[%clk 0:01:10]} 41. Rxh4 {[%clk 0:00:28]}  Rc4+ {[%clk 0:01:05]} 42. Kf2 {[%clk 0:00:25]}  Rxc5 {[%clk 0:01:06]} 43. g4 {[%clk 0:00:17]}  Rc2 {[%clk 0:01:05]} 44. Ke3 {[%clk 0:00:13]}  fxg4 {[%clk 0:00:51]} 45. Bxg4 {[%clk 0:00:14]}  Rc3+ {[%clk 0:00:51]} 46. Kf2 {[%clk 0:00:08]}  Rc4 {[%clk 0:00:35]} 47. Be2 {[%clk 0:00:07]}  Rb4 {[%clk 0:00:32]} 48. Bd3 {[%clk 0:00:07]}  Kg7 {[%clk 0:00:32]} 49. Ke3 {[%clk 0:00:07]}  c5 {[%clk 0:00:31]} 50. Rh6 {[%clk 0:00:06]}  Bf7 {[%clk 0:00:31]} 51. f5 {[%clk 0:00:03]}  gxf5 {[%clk 0:00:30]} 52. Bxf5 {[%clk 0:00:04]}  Rb3+ {[%clk 0:00:22]} 53. Kf4 {[%clk 0:00:04]}  c4 {[%clk 0:00:19]} 54. Ke5 {[%clk 0:00:04]}  Rb5+ {[%clk 0:00:18]} 55. Kf4 {[%clk 0:00:04]}  Rc5 {[%clk 0:00:18]} 56. Rh7+ {[%clk 0:00:05]}  Kf8 {[%clk 0:00:16]} 57. g6 {[%clk 0:00:04]}  Bd5 {[%clk 0:00:14]} 58. g7+ {[%clk 0:00:02]}  Kg8 {[%clk 0:00:14]} 59. Kg5 {[%clk 0:00:03]}  c3 {[%clk 0:00:13]} 60. Kf6 {[%clk 0:00:03]}  Rc6+ {[%clk 0:00:13]} 61. Kg5 {[%clk 0:00:03]}  c2 {[%clk 0:00:13]} 62. Rh8+ {[%clk 0:00:02]}  Kxg7 {[%clk 0:00:14]} 63. Rh7+ {[%clk 0:00:02]}  Kf8 {[%clk 0:00:14]} 64. Bxc2 {[%clk 0:00:02]}  Rxc2 {[%clk 0:00:14]} 65. Kf6 {[%clk 0:00:03]}  Rc6+ {[%clk 0:00:14]} 66. Ke5 {[%clk 0:00:03]}  Bf7 {[%clk 0:00:14]} 67. Rh4 {[%clk 0:00:02]}  Ke7 {[%clk 0:00:14]} 68. Rd4 {[%clk 0:00:02]}  Rc5+ {[%clk 0:00:14]} 69. Ke4 {[%clk 0:00:02]}  Kf6 {[%clk 0:00:13]} 70. Kf4 {[%clk 0:00:02]}  Bd5 {[%clk 0:00:13]} 71. Rd3 {[%clk 0:00:02]}  Rc4+ {[%clk 0:00:13]} 72. Kg3 {[%clk 0:00:02]}  Ke5 {[%clk 0:00:14]} 73. Rd2 {[%clk 0:00:02]}  Rc3+ {[%clk 0:00:13]} 74. Kf2 {[%clk 0:00:02]}  Be4 {[%clk 0:00:13]} 75. Kg1 {[%clk 0:00:03]}  Kf4 {[%clk 0:00:13]} 76. Rf2+ {[%clk 0:00:03]}  Bf3 {[%clk 0:00:14]} 77. Kh2 {[%clk 0:00:02]}  Rc1 {[%clk 0:00:13]} 0-1


[Site "https://www.chess.com"]

[Event "Titled Tuesday Blitz June 22 2021"]
[White "Quparadze, Giga"]
[Black "Petriashvili, Nikoloz"]
[WhiteFideId "13602250"]
[BlackFideId "13611216"]
[WhiteElo "2658"]
[BlackElo "2430"]
[Result "1-0"]
[Round "10"]
[TimeControl "180+1"]
[Date "2021.06.22"]
[WhiteClock "0:00:23"]
[BlackClock "0:00:30"]

1. e4 {[%clk 0:03:00]}  c5 {[%clk 0:03:00]} 2. Ne2 {[%clk 0:03:00]}  Nc6 {[%clk 0:03:00]} 3. Nbc3 {[%clk 0:03:00]}  g6 {[%clk 0:03:00]} 4. d4 {[%clk 0:03:00]}  cxd4 {[%clk 0:03:01]} 5. Nxd4 {[%clk 0:03:01]}  Bg7 {[%clk 0:03:02]} 6. Nde2 {[%clk 0:03:01]}  Nf6 {[%clk 0:03:02]} 7. g3 {[%clk 0:03:02]}  O-O {[%clk 0:03:02]} 8. Bg2 {[%clk 0:03:02]}  d6 {[%clk 0:03:03]} 9. O-O {[%clk 0:03:02]}  Be6 {[%clk 0:03:01]} 10. Nd5 {[%clk 0:03:02]}  Rc8 {[%clk 0:03:00]} 11. Nef4 {[%clk 0:03:02]}  Bxd5 {[%clk 0:02:58]} 12. Nxd5 {[%clk 0:03:02]}  Nxd5 {[%clk 0:02:58]} 13. exd5 {[%clk 0:03:03]}  Ne5 {[%clk 0:02:58]} 14. c3 {[%clk 0:03:03]}  Qb6 {[%clk 0:02:53]} 15. a4 {[%clk 0:03:03]}  a5 {[%clk 0:02:52]} 16. Ra2 {[%clk 0:03:00]}  Qa6 {[%clk 0:02:51]} 17. Re1 {[%clk 0:02:56]}  Qd3 {[%clk 0:02:43]} 18. f4 {[%clk 0:02:48]}  Qxd1 {[%clk 0:02:42]} 19. Rxd1 {[%clk 0:02:49]}  Nd7 {[%clk 0:02:39]} 20. Bh3 {[%clk 0:02:46]}  Rc7 {[%clk 0:02:39]} 21. Be3 {[%clk 0:02:45]}  Nc5 {[%clk 0:02:39]} 22. c4 {[%clk 0:02:42]}  h5 {[%clk 0:02:36]} 23. Kf1 {[%clk 0:02:39]}  b6 {[%clk 0:02:36]} 24. Ke2 {[%clk 0:02:38]}  f5 {[%clk 0:02:35]} 25. Bf1 {[%clk 0:02:37]}  Rfc8 {[%clk 0:02:34]} 26. Kf3 {[%clk 0:02:37]}  Kf7 {[%clk 0:02:32]} 27. Rb1 {[%clk 0:02:36]}  Nd7 {[%clk 0:02:31]} 28. b3 {[%clk 0:02:35]}  Bc3 {[%clk 0:02:30]} 29. Bd3 {[%clk 0:02:28]}  Bb4 {[%clk 0:02:30]} 30. Re2 {[%clk 0:02:28]}  Bc5 {[%clk 0:02:31]} 31. Bc1 {[%clk 0:02:28]}  Nf6 {[%clk 0:02:31]} 32. Bb2 {[%clk 0:02:28]}  Re8 {[%clk 0:02:31]} 33. Rbe1 {[%clk 0:02:28]}  Rcc8 {[%clk 0:02:25]} 34. Re6 {[%clk 0:02:26]}  Bb4 {[%clk 0:02:21]} 35. R1e2 {[%clk 0:02:26]}  Nd7 {[%clk 0:02:19]} 36. Bc2 {[%clk 0:02:22]}  Nc5 {[%clk 0:02:18]} 37. R6e3 {[%clk 0:02:21]}  e6 {[%clk 0:02:15]} 38. dxe6+ {[%clk 0:02:12]}  Rxe6 {[%clk 0:02:16]} 39. Rxe6 {[%clk 0:02:08]}  Nxe6 {[%clk 0:02:17]} 40. h3 {[%clk 0:02:08]}  Bc5 {[%clk 0:02:15]} 41. Rd2 {[%clk 0:02:07]}  Re8 {[%clk 0:02:12]} 42. g4 {[%clk 0:02:07]}  hxg4+ {[%clk 0:02:12]} 43. hxg4 {[%clk 0:02:08]}  Ng7 {[%clk 0:02:07]} 44. gxf5 {[%clk 0:02:00]}  Re3+ {[%clk 0:02:06]} 45. Kg4 {[%clk 0:01:57]}  gxf5+ {[%clk 0:01:59]} 46. Bxf5 {[%clk 0:01:57]}  Rxb3 {[%clk 0:01:58]} 47. Be4 {[%clk 0:01:54]}  Ne8 {[%clk 0:01:47]} 48. Bd5+ {[%clk 0:01:53]}  Ke7 {[%clk 0:01:48]} 49. Re2+ {[%clk 0:01:52]}  Re3 {[%clk 0:01:48]} 50. Rh2 {[%clk 0:01:48]}  Nf6+ {[%clk 0:01:47]} 51. Kf5 {[%clk 0:01:46]}  Nxd5 {[%clk 0:01:46]} 52. cxd5 {[%clk 0:01:46]}  Rd3 {[%clk 0:01:44]} 53. Bf6+ {[%clk 0:01:45]}  Ke8 {[%clk 0:01:40]} 54. Rh7 {[%clk 0:01:43]}  Ra3 {[%clk 0:01:31]} 55. Rb7 {[%clk 0:01:42]}  Rxa4 {[%clk 0:01:29]} 56. Ke6 {[%clk 0:01:34]}  Re4+ {[%clk 0:01:27]} 57. Kf5 {[%clk 0:01:29]}  Re2 {[%clk 0:01:23]} 58. Ra7 {[%clk 0:01:27]}  Re3 {[%clk 0:01:14]} 59. Kg6 {[%clk 0:01:26]}  Rg3+ {[%clk 0:01:13]} 60. Kf5 {[%clk 0:01:24]}  Re3 {[%clk 0:01:13]} 61. Bg5 {[%clk 0:01:21]}  Bd4 {[%clk 0:01:06]} 62. Kg6 {[%clk 0:01:21]}  b5 {[%clk 0:01:01]} 63. Rb7 {[%clk 0:01:05]}  b4 {[%clk 0:01:00]} 64. f5 {[%clk 0:01:06]}  Rf3 {[%clk 0:00:59]} 65. f6 {[%clk 0:01:04]}  a4 {[%clk 0:00:55]} 66. f7+ {[%clk 0:00:49]}  Rxf7 {[%clk 0:00:55]} 67. Rxf7 {[%clk 0:00:50]}  a3 {[%clk 0:00:56]} 68. Re7+ {[%clk 0:00:48]}  Kf8 {[%clk 0:00:48]} 69. Rb7 {[%clk 0:00:30]}  Ke8 {[%clk 0:00:46]} 70. Re7+ {[%clk 0:00:25]}  Kf8 {[%clk 0:00:46]} 71. Re6 {[%clk 0:00:23]}  Bg7 {[%clk 0:00:40]} 72. Be7+ {[%clk 0:00:23]}  Kg8 {[%clk 0:00:37]} 73. Bf6 {[%clk 0:00:23]}  Bf8 {[%clk 0:00:31]} 74. Re8 {[%clk 0:00:23]}  a2 {[%clk 0:00:30]} 1-0


[Site "https://www.chess.com"]

[Event "Titled Tuesday Blitz June 22 2021"]
[White "Rychagov, Andrey"]
[Black "Gabrielian, Artur"]
[WhiteFideId "4119932"]
[BlackFideId "4131002"]
[WhiteElo "2527"]
[BlackElo "2539"]
[Result "1/2-1/2"]
[Round "10"]
[TimeControl "180+1"]
[Date "2021.06.22"]
[WhiteClock "0:00:16"]
[BlackClock "0:00:19"]

1. d4 {[%clk 0:03:00]}  Nf6 {[%clk 0:02:59]} 2. Nf3 {[%clk 0:03:00]}  g6 {[%clk 0:02:58]} 3. c4 {[%clk 0:03:00]}  Bg7 {[%clk 0:02:58]} 4. Nc3 {[%clk 0:02:59]}  d5 {[%clk 0:02:58]} 5. cxd5 {[%clk 0:02:57]}  Nxd5 {[%clk 0:02:58]} 6. Bg5 {[%clk 0:02:58]}  Nxc3 {[%clk 0:02:52]} 7. bxc3 {[%clk 0:02:58]}  c5 {[%clk 0:02:53]} 8. e3 {[%clk 0:02:58]}  Qa5 {[%clk 0:02:51]} 9. Qd2 {[%clk 0:02:57]}  Nd7 {[%clk 0:02:48]} 10. Be2 {[%clk 0:02:42]}  h6 {[%clk 0:02:45]} 11. Bh4 {[%clk 0:02:40]}  b6 {[%clk 0:02:35]} 12. O-O {[%clk 0:02:38]}  Ba6 {[%clk 0:02:35]} 13. Bxa6 {[%clk 0:02:30]}  Qxa6 {[%clk 0:02:35]} 14. d5 {[%clk 0:02:30]}  Nf6 {[%clk 0:02:05]} 15. Bxf6 {[%clk 0:01:57]}  Bxf6 {[%clk 0:02:02]} 16. e4 {[%clk 0:01:57]}  Qc4 {[%clk 0:01:58]} 17. e5 {[%clk 0:01:55]}  Bg7 {[%clk 0:01:58]} 18. d6 {[%clk 0:01:54]}  Rd8 {[%clk 0:01:51]} 19. Qe3 {[%clk 0:01:54]}  exd6 {[%clk 0:01:42]} 20. exd6+ {[%clk 0:01:27]}  Qe6 {[%clk 0:01:42]} 21. Rfe1 {[%clk 0:01:27]}  Qxe3 {[%clk 0:01:32]} 22. Rxe3+ {[%clk 0:01:27]}  Kf8 {[%clk 0:01:32]} 23. Rd1 {[%clk 0:01:22]}  Rd7 {[%clk 0:01:25]} 24. g4 {[%clk 0:01:10]}  Bf6 {[%clk 0:01:12]} 25. h4 {[%clk 0:00:59]}  g5 {[%clk 0:01:11]} 26. hxg5 {[%clk 0:00:55]}  hxg5 {[%clk 0:01:12]} 27. Kg2 {[%clk 0:00:53]}  Kg7 {[%clk 0:01:09]} 28. Ne5 {[%clk 0:00:54]}  Bxe5 {[%clk 0:01:03]} 29. Rxe5 {[%clk 0:00:54]}  Kg6 {[%clk 0:00:47]} 30. Rdd5 {[%clk 0:00:53]}  f6 {[%clk 0:00:45]} 31. Re2 {[%clk 0:00:34]}  Rhd8 {[%clk 0:00:44]} 32. Red2 {[%clk 0:00:35]}  c4 {[%clk 0:00:35]} 33. Kf3 {[%clk 0:00:33]}  Kf7 {[%clk 0:00:35]} 34. R5d4 {[%clk 0:00:33]}  b5 {[%clk 0:00:34]} 35. a3 {[%clk 0:00:28]}  a6 {[%clk 0:00:33]} 36. Rd1 {[%clk 0:00:26]}  Ke6 {[%clk 0:00:32]} 37. Re1+ {[%clk 0:00:26]}  Kf7 {[%clk 0:00:32]} 38. Red1 {[%clk 0:00:26]}  Rh8 {[%clk 0:00:28]} 39. Kg3 {[%clk 0:00:25]}  Re8 {[%clk 0:00:27]} 40. a4 {[%clk 0:00:24]}  Re5 {[%clk 0:00:26]} 41. axb5 {[%clk 0:00:24]}  axb5 {[%clk 0:00:26]} 42. f4 {[%clk 0:00:19]}  gxf4+ {[%clk 0:00:26]} 43. Kxf4 {[%clk 0:00:19]}  Ke6 {[%clk 0:00:27]} 44. R1d2 {[%clk 0:00:18]}  Re1 {[%clk 0:00:25]} 45. Rd5 {[%clk 0:00:18]}  Rc1 {[%clk 0:00:19]} 46. Rxb5 {[%clk 0:00:18]}  Rxc3 {[%clk 0:00:19]} 47. Re2+ {[%clk 0:00:18]}  Kf7 {[%clk 0:00:19]} 48. Rd5 {[%clk 0:00:17]}  Rd3 {[%clk 0:00:19]} 49. Ke4 {[%clk 0:00:16]}  Rxd6 {[%clk 0:00:17]} 50. Rxd6 {[%clk 0:00:14]}  Rxd6 {[%clk 0:00:18]} 51. Rc2 {[%clk 0:00:14]}  Rc6 {[%clk 0:00:18]} 52. Kd5 {[%clk 0:00:14]}  Rc8 {[%clk 0:00:18]} 53. Rxc4 {[%clk 0:00:15]}  Rxc4 {[%clk 0:00:18]} 54. Kxc4 {[%clk 0:00:15]}  Kg6 {[%clk 0:00:18]} 55. Kd5 {[%clk 0:00:15]}  Kg5 {[%clk 0:00:18]} 56. Ke6 {[%clk 0:00:15]}  Kxg4 {[%clk 0:00:19]} 57. Kxf6 {[%clk 0:00:16]} 1/2-1/2


[Site "https://www.chess.com"]

[Event "Titled Tuesday Blitz June 22 2021"]
[White "Sarana, Alexey"]
[Black "Maximov, Dmitry"]
[WhiteFideId "24133795"]
[BlackFideId "14105659"]
[WhiteElo "2629"]
[BlackElo "2494"]
[Result "1-0"]
[Round "10"]
[TimeControl "180+1"]
[Date "2021.06.22"]
[WhiteClock "0:01:21"]
[BlackClock "0:00:06"]

1. e4 {[%clk 0:02:46]}  c5 {[%clk 0:02:59]} 2. Nf3 {[%clk 0:02:46]}  d6 {[%clk 0:03:00]} 3. d4 {[%clk 0:02:46]}  cxd4 {[%clk 0:03:00]} 4. Nxd4 {[%clk 0:02:47]}  Nf6 {[%clk 0:03:01]} 5. Nc3 {[%clk 0:02:48]}  Nc6 {[%clk 0:03:02]} 6. Bg5 {[%clk 0:02:48]}  e6 {[%clk 0:03:02]} 7. Qd3 {[%clk 0:02:48]}  a6 {[%clk 0:03:00]} 8. Nxc6 {[%clk 0:02:48]}  bxc6 {[%clk 0:03:00]} 9. O-O-O {[%clk 0:02:49]}  Bd7 {[%clk 0:02:53]} 10. e5 {[%clk 0:02:42]}  dxe5 {[%clk 0:02:53]} 11. Bxf6 {[%clk 0:02:40]}  gxf6 {[%clk 0:02:53]} 12. Ne4 {[%clk 0:02:38]}  Ra7 {[%clk 0:02:37]} 13. Qe3 {[%clk 0:02:31]}  Rc7 {[%clk 0:02:29]} 14. Bxa6 {[%clk 0:02:28]}  Be7 {[%clk 0:02:24]} 15. Qh6 {[%clk 0:02:16]}  f5 {[%clk 0:01:47]} 16. Qg7 {[%clk 0:02:11]}  Rf8 {[%clk 0:01:44]} 17. Nd6+ {[%clk 0:02:11]}  Bxd6 {[%clk 0:01:44]} 18. Rxd6 {[%clk 0:02:12]}  Qa8 {[%clk 0:01:35]} 19. Bc4 {[%clk 0:02:08]}  Qa4 {[%clk 0:01:30]} 20. Bb3 {[%clk 0:02:01]}  Qf4+ {[%clk 0:01:29]} 21. Rd2 {[%clk 0:01:52]}  h6 {[%clk 0:00:57]} 22. g3 {[%clk 0:01:50]}  Qe4 {[%clk 0:00:51]} 23. Rhd1 {[%clk 0:01:50]}  Ke7 {[%clk 0:00:29]} 24. Qxh6 {[%clk 0:01:43]}  Rg8 {[%clk 0:00:28]} 25. c3 {[%clk 0:01:39]}  c5 {[%clk 0:00:27]} 26. Qh7 {[%clk 0:01:38]}  Rd8 {[%clk 0:00:26]} 27. Qg7 {[%clk 0:01:37]}  c4 {[%clk 0:00:18]} 28. Bc2 {[%clk 0:01:37]}  Qg4 {[%clk 0:00:16]} 29. Qxe5 {[%clk 0:01:37]}  Rc6 {[%clk 0:00:14]} 30. Ba4 {[%clk 0:01:35]}  f6 {[%clk 0:00:10]} 31. Qa5 {[%clk 0:01:34]}  Qf3 {[%clk 0:00:07]} 32. Qb4+ {[%clk 0:01:28]}  Ke8 {[%clk 0:00:06]} 33. Qb7 {[%clk 0:01:21]} 1-0


[Site "https://www.chess.com"]

[Event "Titled Tuesday Blitz June 22 2021"]
[White "Wagner, Dennis"]
[Black "Martinez Alcantara, Jose Eduardo"]
[WhiteFideId "24650684"]
[BlackFideId "3805662"]
[WhiteElo "2355"]
[BlackElo "2690"]
[Result "1-0"]
[Round "10"]
[TimeControl "180+1"]
[Date "2021.06.22"]
[WhiteClock "0:00:24"]
[BlackClock "0:00:02"]

1. e4 {[%clk 0:03:00]}  c5 {[%clk 0:02:55]} 2. Nf3 {[%clk 0:02:59]}  d6 {[%clk 0:02:55]} 3. Bb5+ {[%clk 0:02:54]}  Nd7 {[%clk 0:02:55]} 4. O-O {[%clk 0:02:53]}  a6 {[%clk 0:02:53]} 5. Bxd7+ {[%clk 0:02:54]}  Bxd7 {[%clk 0:02:54]} 6. c3 {[%clk 0:02:55]}  e6 {[%clk 0:02:49]} 7. d4 {[%clk 0:02:54]}  cxd4 {[%clk 0:02:49]} 8. cxd4 {[%clk 0:02:55]}  Nf6 {[%clk 0:02:49]} 9. Nc3 {[%clk 0:02:55]}  d5 {[%clk 0:02:38]} 10. exd5 {[%clk 0:02:52]}  exd5 {[%clk 0:02:36]} 11. Bg5 {[%clk 0:02:26]}  Be6 {[%clk 0:02:16]} 12. Bxf6 {[%clk 0:02:21]}  gxf6 {[%clk 0:02:10]} 13. Re1 {[%clk 0:02:21]}  Qd7 {[%clk 0:02:06]} 14. Rc1 {[%clk 0:02:13]}  b5 {[%clk 0:02:02]} 15. Nh4 {[%clk 0:02:09]}  Be7 {[%clk 0:01:41]} 16. Qh5 {[%clk 0:01:57]}  Rc8 {[%clk 0:01:40]} 17. h3 {[%clk 0:01:35]}  Kd8 {[%clk 0:01:31]} 18. Ne2 {[%clk 0:01:27]}  Rc4 {[%clk 0:00:58]} 19. b3 {[%clk 0:01:24]}  Rxc1 {[%clk 0:00:58]} 20. Rxc1 {[%clk 0:01:25]}  Ba3 {[%clk 0:00:58]} 21. Rc2 {[%clk 0:01:24]}  Bd6 {[%clk 0:00:47]} 22. Qf3 {[%clk 0:01:24]}  Ke7 {[%clk 0:00:44]} 23. Ng3 {[%clk 0:01:20]}  Bxg3 {[%clk 0:00:40]} 24. fxg3 {[%clk 0:01:21]}  Rc8 {[%clk 0:00:40]} 25. Rf2 {[%clk 0:01:18]}  f5 {[%clk 0:00:38]} 26. Re2 {[%clk 0:00:55]}  Kd8 {[%clk 0:00:32]} 27. Qf4 {[%clk 0:00:53]}  Rc6 {[%clk 0:00:29]} 28. Nf3 {[%clk 0:00:50]}  Qc7 {[%clk 0:00:27]} 29. Ne5 {[%clk 0:00:47]}  Rc1+ {[%clk 0:00:24]} 30. Kh2 {[%clk 0:00:47]}  Kc8 {[%clk 0:00:25]} 31. Qh6 {[%clk 0:00:37]}  Rf1 {[%clk 0:00:20]} 32. Nd3 {[%clk 0:00:28]}  Rd1 {[%clk 0:00:08]} 33. Qf8+ {[%clk 0:00:25]}  Kb7 {[%clk 0:00:05]} 34. Nc5+ {[%clk 0:00:26]}  Ka7 {[%clk 0:00:05]} 35. Nxe6 {[%clk 0:00:24]}  fxe6 {[%clk 0:00:06]} 36. Rxe6 {[%clk 0:00:24]}  Qc1 {[%clk 0:00:01]} 37. Re7+ {[%clk 0:00:25]}  Kb6 {[%clk 0:00:02]} 38. Qd8+ {[%clk 0:00:25]}  Kc6 {[%clk 0:00:02]} 39. Qc7# {[%clk 0:00:24]} 1-0


[Site "https://www.chess.com"]